bitfinex/quotes_ETHUSD_20230110
["timestamp","ask_amount","ask_price","bid_price","bid_amount"]
[1673320323940,28.8740933,1320.4,1320.1,3.0]
[1673320324648,29.06008355,1320.4,1320.1,3.0]
[1673320325533,30.75060544,1320.4,1320.1,3.0]
[1673320326690,29.06008355,1320.4,1320.1,3.0]
[1673320327891,30.75060544,1320.4,1320.1,3.0]
[1673320328103,29.06008355,1320.4,1320.1,3.0]
[1673320328349,28.8740933,1320.4,1320.1,3.0]
[1673320328786,13.7265533,1320.4,1320.1,10.57512]
[1673320328993,8.77039521,1320.4,1320.1,10.64112]
[1673320329522,7.6455448,1320.4,1320.1,13.14112]
[1673320330359,0.066,1320.4,1320.2,11.43934]
[1673320330575,10.4664,1320.5,1320.2,19.07994]
[1673320330729,10.4664,1320.5,1320.2,30.32231472]
[1673320332728,10.4664,1320.5,1320.2,34.11997536]
[1673320332945,10.4664,1320.5,1320.2,26.54537536]
[1673320333809,0.066,1320.5,1320.2,26.54537536]
[1673320334029,27.87592041,1320.6,1320.2,30.04537536]
[1673320334253,26.75107,1320.6,1320.3,5.16466064]
[1673320334565,26.75107,1320.6,1320.4,16.52092]
[1673320334566,11.038,1320.6,1320.4,16.52092]
[1673320334769,1.366,1320.6,1320.4,16.58692]
[1673320334980,1.3,1320.6,1320.4,16.58692]
[1673320335143,1.3,1320.6,1320.4,11.51346]
[1673320335348,1.3,1320.6,1320.4,25.95870409]
[1673320335592,1.3,1320.6,1320.4,37.03216409]
[1673320335813,1.3,1320.6,1320.5,5.16266064]
[1673320335982,1.3,1320.6,1320.5,27.94730064]
[1673320336942,0.04834126,1320.7,1320.5,31.44730064]
[1673320337163,0.04834126,1320.7,1320.6,12.54066064]
[1673320337391,0.04834126,1320.7,1320.6,38.32359064]
[1673320337992,0.04834126,1320.7,1320.6,34.82359064]
[1673320338922,0.04834126,1320.7,1320.6,34.82459064]
[1673320339187,0.04834126,1320.7,1320.6,38.32459064]
[1673320339396,0.04834126,1320.7,1320.6,38.03833083]
[1673320342184,0.04834126,1320.7,1320.6,41.53833083]
[1673320342505,0.04834126,1320.7,1320.6,38.03833083]
[1673320343055,0.04834126,1320.7,1320.6,38.03573484]
[1673320343256,0.04834126,1320.7,1320.6,36.66273484]
[1673320343689,0.04834126,1320.7,1320.6,40.16273484]
[1673320343891,0.04834126,1320.7,1320.6,36.66273484]
[1673320345583,0.04834126,1320.7,1320.6,12.57480484]
[1673320345772,0.04834126,1320.7,1320.6,10.07480484]
[1673320345985,0.04834126,1320.7,1320.6,32.79173484]
[1673320346256,0.04834126,1320.7,1320.6,25.21942484]
[1673320346749,0.04834126,1320.7,1320.6,32.65842523]
[1673320346961,0.04834126,1320.7,1320.6,34.03142523]
[1673320347179,0.04834126,1320.7,1320.6,34.26142523]
[1673320348959,0.04834126,1320.7,1320.6,30.73091693]
[1673320349574,0.05053406,1320.9,1320.6,40.34551818]
[1673320349778,0.05053406,1320.9,1320.8,47.01264]
[1673320350021,0.05053406,1320.9,1320.8,58.07458366]
[1673320350229,0.05053406,1320.9,1320.8,62.02943359]
[1673320350443,4.06e-06,1320.9,1320.8,62.02943359]
[1673320350670,4.06e-06,1320.9,1320.8,69.60059359]
[1673320351027,4.06e-06,1320.9,1320.8,66.07008529]
[1673320351288,4.06e-06,1320.9,1320.8,58.49892529]
[1673320355479,4.06e-06,1320.9,1320.8,65.44087536]
[1673320357022,4.06e-06,1320.9,1320.8,66.16572529]
[1673320358909,0.05996205,1321.0,1320.8,66.16572529]
[1673320358910,6.11e-06,1321.0,1320.8,71.05623359]
[1673320359173,0.5678,1321.3,1321.0,2.5]
[1673320359486,0.12084584,1321.4,1321.3,22.7049]
[1673320359487,0.62264584,1321.4,1321.3,22.7049]
[1673320359643,0.05484584,1321.4,1321.3,26.56856064]
[1673320360513,0.05484584,1321.4,1321.3,27.92856064]
[1673320361742,0.05484584,1321.4,1321.3,15.2026]
[1673320362120,0.05484584,1321.4,1321.3,0.066]
[1673320362428,0.05484584,1321.4,1321.1,0.066]
[1673320362429,1.29074341,1321.2,1321.1,0.066]
[1673320362651,1.41981775,1321.2,1321.0,7.63553]
[1673320362796,1.29074341,1321.2,1321.0,0.066]
[1673320363008,7.56944,1321.1,1320.8,0.066]
[1673320363230,8.2091148,1321.1,1320.7,14.066]
[1673320363477,11.41082162,1321.1,1320.7,17.86366064]
[1673320363874,18.98026162,1321.1,1320.7,0.066]
[1673320364064,18.98026162,1321.1,1320.5,23.04184993]
[1673320364065,8.94398,1320.9,1320.5,14.066]
[1673320364265,8.94398,1320.9,1320.5,17.86366064]
[1673320364266,0.0057748,1320.8,1320.5,17.86366064]
[1673320364951,0.0057748,1320.8,1320.6,2.5]
[1673320366099,7.5769648,1320.8,1320.5,3.86366064]
[1673320366313,7.6429648,1320.8,1320.5,3.79766064]
[1673320366524,0.0717748,1320.8,1320.5,11.37053064]
[1673320366734,0.0057748,1320.8,1320.5,19.73425057]
[1673320367053,0.0057748,1320.8,1320.6,2.5]
[1673320367272,0.0057748,1320.8,1320.6,10.07189]
[1673320367575,0.0057748,1320.8,1320.6,17.71011]
[1673320367788,9.9938,1321.0,1320.7,3.79766064]
[1673320368109,0.066,1321.0,1320.8,29.01114064]
[1673320368418,0.57664341,1321.2,1320.9,3.79766064]
[1673320368594,0.57664341,1321.2,1320.9,12.09294057]
[1673320368798,0.57664341,1321.2,1320.9,12.15894057]
[1673320369204,1.70149382,1321.2,1320.9,4.58851057]
[1673320369415,1.70149382,1321.2,1320.9,4.52251057]
[1673320369622,1.88613386,1321.2,1320.9,4.52251057]
[1673320370050,9.45503386,1321.2,1320.9,4.52251057]
[1673320370258,9.33639382,1321.2,1320.9,4.52251057]
[1673320370521,1.76749382,1321.2,1320.9,13.55888063]
[1673320370727,1.75149382,1321.2,1320.9,13.62488063]
[1673320370884,1.70149382,1321.2,1320.9,28.76606063]
[1673320371100,1.70149382,1321.2,1321.0,3.22484993]
[1673320371101,0.57664341,1321.2,1321.0,3.22484993]
[1673320371571,9.27041382,1321.2,1321.0,0.72484993]
[1673320371774,9.33641382,1321.2,1321.0,0.72484993]
[1673320372363,9.52115117,1321.2,1321.0,0.72484993]
[1673320373003,10.54184483,1321.2,1321.0,0.72484993]
[1673320373585,4.66344672,1321.2,1321.0,0.72484993]
[1673320373743,11.98157937,1321.2,1321.0,0.72484993]
[1673320373952,12.23231672,1321.2,1321.0,0.72484993]
[1673320374625,4.66344672,1321.2,1321.0,0.72484993]
[1673320374841,4.59744672,1321.2,1321.0,0.72484993]
[1673320375425,1.12485041,1321.1,1321.0,0.72484993]
[1673320375897,1.12485041,1321.1,1321.0,8.29486993]
[1673320376067,3.57675306,1321.2,1321.0,19.72855057]
[1673320376281,1.70149382,1321.2,1321.0,27.29857057]
[1673320376949,1.70149382,1321.2,1321.0,19.72855057]
[1673320377257,1.70149382,1321.2,1321.0,30.02843763]
[1673320377417,0.00874341,1321.2,1321.1,19.66139057]
[1673320377629,0.00874341,1321.2,1321.1,27.29683057]
[1673320379216,0.00874341,1321.2,1321.1,27.29327674]
[1673320380005,0.00874341,1321.2,1321.1,19.72383674]
[1673320380213,0.00874341,1321.2,1321.1,12.15439674]
[1673320381760,0.00874341,1321.2,1321.1,4.58495674]
[1673320381977,0.00874341,1321.2,1321.1,6.30766079]
[1673320382319,0.00874341,1321.2,1321.1,13.94310079]
[1673320382482,0.00874341,1321.2,1321.1,6.37366079]
[1673320382694,0.00874341,1321.2,1321.1,4.58495674]
[1673320382899,0.00874341,1321.2,1321.1,4.51895674]
[1673320383317,0.00537461,1321.2,1321.1,4.51895674]
[1673320383527,1.13022502,1321.2,1321.1,12.08839674]
[1673320383734,1.13022502,1321.2,1321.1,19.72383674]
[1673320384581,0.00537461,1321.2,1321.1,19.72383674]
[1673320385043,0.00537461,1321.2,1321.1,12.15439674]
[1673320385339,0.00537461,1321.2,1321.1,19.72383674]
[1673320385562,1.13022502,1321.2,1321.1,12.15439674]
[1673320385862,0.00537461,1321.2,1321.1,27.29327674]
[1673320386065,0.00537461,1321.2,1321.1,31.05255512]
[1673320386296,0.00537461,1321.2,1321.1,23.48311512]
[1673320386501,0.00537461,1321.2,1321.1,31.05255512]
[1673320386717,0.00537461,1321.2,1321.1,23.48311512]
[1673320387051,0.00537461,1321.2,1321.1,31.05255512]
[1673320389449,0.00537461,1321.2,1321.1,23.48311512]
[1673320390073,1.13022502,1321.2,1321.1,23.48311512]
[1673320390725,0.00537461,1321.2,1321.1,23.48311512]
[1673320391129,0.00537461,1321.2,1321.1,31.05255512]
[1673320391585,0.00537461,1321.2,1321.1,23.48311512]
[1673320391723,0.00537461,1321.2,1321.1,15.91367512]
[1673320391934,0.00537461,1321.2,1321.1,23.48311512]
[1673320392893,0.00537461,1321.2,1321.1,31.05255512]
[1673320393829,1.13022502,1321.2,1321.1,31.05255512]
[1673320394035,1.13022502,1321.2,1321.1,27.29327674]
[1673320394307,0.00537461,1321.2,1321.1,27.29327674]
[1673320397083,0.00537461,1321.2,1321.1,41.29327674]
[1673320397664,0.00537461,1321.2,1321.1,44.82378504]
[1673320398049,0.00537461,1321.2,1321.1,57.18878504]
[1673320400333,0.00537461,1321.2,1321.1,49.18878504]
[1673320400542,0.00537461,1321.2,1321.1,57.18878504]
[1673320401965,0.00537461,1321.2,1321.1,57.41878504]
[1673320402336,0.00537461,1321.2,1321.1,53.88827674]
[1673320405487,0.00537461,1321.2,1321.1,55.76632622]
[1673320405699,0.00537461,1321.2,1321.1,53.88827674]
[1673320406021,0.00537461,1321.2,1321.1,61.2003393]
[1673320406022,4.61e-06,1321.2,1321.1,61.2003393]
[1673320406249,4.61e-06,1321.2,1321.1,58.38796876]
[1673320408008,4.61e-06,1321.2,1321.1,55.76630333]
[1673320408233,4.61e-06,1321.2,1321.1,58.38899076]
[1673320414996,4.61e-06,1321.2,1321.1,59.5224629]
[1673320416096,4.61e-06,1321.2,1321.1,58.38899076]
[1673320417165,4.61e-06,1321.2,1321.1,58.38699076]
[1673320417357,4.61e-06,1321.2,1321.1,58.38899076]
[1673320418212,4.61e-06,1321.2,1321.1,55.76630333]
[1673320422985,4.61e-06,1321.2,1321.1,58.3909595]
[1673320427908,4.61e-06,1321.2,1321.1,62.33062063]
[1673320428148,4.61e-06,1321.2,1321.1,65.40581529]
[1673320428732,4.61e-06,1321.2,1321.1,64.27234315]
[1673320428989,4.61e-06,1321.2,1321.1,62.5994294]
[1673320429158,0.05484584,1321.4,1321.2,0.00361024]
[1673320429367,0.05484584,1321.4,1321.3,49.44386064]
[1673320429620,0.05484584,1321.4,1321.3,51.61788723]
[1673320429938,0.05484584,1321.4,1321.3,53.96973716]
[1673320430291,0.05484584,1321.4,1321.3,62.3564889]
[1673320432709,0.05484584,1321.4,1321.3,62.3564068]
[1673320432977,0.05484584,1321.4,1321.3,59.73039804]
[1673320433295,0.05484584,1321.4,1321.3,62.35641174]
[1673320433610,0.05484584,1321.4,1321.3,59.73039804]
[1673320433981,0.05484584,1321.4,1321.3,62.35687117]
[1673320434504,0.05484584,1321.4,1321.3,59.73039804]
[1673320435128,0.05484584,1321.4,1321.3,62.35688275]
[1673320435334,0.05484584,1321.4,1321.3,59.73039804]
[1673320435854,0.05484584,1321.4,1321.3,62.35686132]
[1673320446176,0.05484584,1321.4,1321.3,63.49012272]
[1673320446388,0.05484584,1321.4,1321.3,62.35686132]
[1673320447985,0.05484584,1321.4,1321.3,63.49012272]
[1673320448568,0.05484584,1321.4,1321.3,62.35686132]
[1673320451828,0.05484584,1321.4,1321.3,63.49012272]
[1673320452447,0.05111253,1321.4,1321.3,63.49012272]
[1673320452851,0.05111253,1321.4,1321.3,73.42405598]
[1673320453244,0.05111253,1321.4,1321.3,75.68982898]
[1673320453871,0.06571059,1321.5,1321.3,84.36064606]
[1673320454088,0.06571059,1321.5,1321.4,15.50766244]
[1673320454348,0.06571059,1321.5,1321.4,39.48808973]
[1673320454542,0.06571059,1321.5,1321.4,38.54346119]
[1673320454724,0.06571059,1321.5,1321.4,43.07346119]
[1673320454939,9.5147,1321.8,1321.5,2.5]
[1673320455182,9.5147,1321.8,1321.6,48.06398064]
[1673320455347,9.5147,1321.8,1321.7,4.02766064]
[1673320455553,0.066,1321.8,1321.7,29.98056926]
[1673320455848,11.55103091,1321.9,1321.7,27.54656926]
[1673320456020,1.27353091,1321.9,1321.8,3.79766064]
[1673320456197,1.27353091,1321.9,1321.8,26.49398064]
[1673320456198,1.20753091,1321.9,1321.8,26.49398064]
[1673320456410,1.20753091,1321.9,1321.8,26.55998064]
[1673320456842,0.0826805,1321.9,1321.8,26.55998064]
[1673320457448,1.20753091,1321.9,1321.8,26.55998064]
[1673320457660,0.0826805,1321.9,1321.8,26.55998064]
[1673320457882,0.0826805,1321.9,1321.8,27.54121793]
[1673320459633,0.0826805,1321.9,1321.8,41.54121793]
[1673320460334,0.0826805,1321.9,1321.8,41.53762226]
[1673320461340,0.0826805,1321.9,1321.8,42.52250088]
[1673320461604,0.0826805,1321.9,1321.8,46.05300918]
[1673320461810,0.0826805,1321.9,1321.8,42.52250088]
[1673320463550,0.0826805,1321.9,1321.8,46.05300918]
[1673320463985,0.0826805,1321.9,1321.8,42.52250088]
[1673320465127,0.0826805,1321.9,1321.8,41.76762226]
[1673320465386,0.0826805,1321.9,1321.8,40.78638497]
[1673320470389,0.0826805,1321.9,1321.8,37.782931]
[1673320471568,0.0826805,1321.9,1321.8,38.53780962]
[1673320481333,0.0826805,1321.9,1321.8,38.30780962]
[1673320481541,0.0826805,1321.9,1321.8,37.552931]
[1673320484939,0.0826805,1321.9,1321.8,14.066]
[1673320485153,1.21113483,1321.9,1321.8,14.066]
[1673320485327,1.21113483,1321.9,1321.8,21.63144]
[1673320485328,0.0826805,1321.9,1321.8,21.63144]
[1673320486606,1.21113483,1321.9,1321.8,14.066]
[1673320486957,1.21113483,1321.9,1321.8,21.63144]
[1673320487287,0.0826805,1321.9,1321.8,21.63144]
[1673320487452,1.21113483,1321.9,1321.8,21.63144]
[1673320487664,1.21113483,1321.9,1321.8,14.066]
[1673320487903,0.0826805,1321.9,1321.8,14.066]
[1673320488517,1.21113483,1321.9,1321.8,14.066]
[1673320490653,2.90381632,1321.9,1321.8,14.066]
[1673320490839,1.21113483,1321.9,1321.8,14.066]
[1673320491806,2.90381632,1321.9,1321.8,14.066]
[1673320492193,1.21113483,1321.9,1321.8,14.066]
[1673320492437,2.90381632,1321.9,1321.8,14.066]
[1673320492596,1.77536199,1321.9,1321.8,14.066]
[1673320494618,2.90655208,1321.9,1321.8,14.066]
[1673320494832,2.90655208,1321.9,1321.8,32.99454064]
[1673320495012,2.90655208,1321.9,1321.8,40.55998064]
[1673320495751,1.21387059,1321.9,1321.8,40.55998064]
[1673320495962,1.21387059,1321.9,1321.8,42.43721531]
[1673320496200,1.21387059,1321.9,1321.8,40.55998064]
[1673320496430,1.21387059,1321.9,1321.8,32.99454064]
[1673320497481,1.21387059,1321.9,1321.8,39.79760738]
[1673320498425,1.21387059,1321.9,1321.8,37.9203685]
[1673320498669,1.21387059,1321.9,1321.8,32.99454064]
[1673320500742,1.21387059,1321.9,1321.8,34.87178049]
[1673320501125,1.21387059,1321.9,1321.8,42.43722049]
[1673320501346,1.21387059,1321.9,1321.8,45.17547266]
[1673320501775,0.0826805,1321.9,1321.8,45.17547266]
[1673320501949,1.21387059,1321.9,1321.8,50.73277244]
[1673320502160,0.0826805,1321.9,1321.8,50.73277244]
[1673320502578,1.21387059,1321.9,1321.8,50.73277244]
[1673320502789,1.21387059,1321.9,1321.8,51.48765106]
[1673320503016,0.0826805,1321.9,1321.8,51.48765106]
[1673320503251,1.21387059,1321.9,1321.8,51.48765106]
[1673320503467,0.0826805,1321.9,1321.8,51.48765106]
[1673320503648,1.21387059,1321.9,1321.8,50.73277244]
[1673320504071,0.0826805,1321.9,1321.8,50.73277244]
[1673320504424,1.21387059,1321.9,1321.8,50.73277244]
[1673320505340,1.21387059,1321.9,1321.8,50.73314515]
[1673320505737,1.21387059,1321.9,1321.8,47.99452027]
[1673320506882,1.21387059,1321.9,1321.8,50.73297434]
[1673320507091,1.21387059,1321.9,1321.8,47.99452027]
[1673320507359,1.21387059,1321.9,1321.8,50.73295916]
[1673320508752,1.21387059,1321.9,1321.8,45.17565938]
[1673320508926,1.21387059,1321.9,1321.8,34.87178049]
[1673320509459,1.21387059,1321.9,1321.8,42.43722049]
[1673320509775,1.21387059,1321.9,1321.8,45.17569751]
[1673320510996,1.21387059,1321.9,1321.8,45.17569179]
[1673320511227,1.21387059,1321.9,1321.8,42.43722049]
[1673320511407,1.21387059,1321.9,1321.8,45.17569597]
[1673320511617,1.21387059,1321.9,1321.8,50.63855513]
[1673320513525,1.21387059,1321.9,1321.8,47.90007975]
[1673320514666,1.21387059,1321.9,1321.8,50.63845576]
[1673320518053,0.0826805,1321.9,1321.8,52.75583237]
[1673320518258,0.0826805,1321.9,1321.8,51.62333438]
[1673320518611,1.21387059,1321.9,1321.8,51.62333438]
[1673320518810,1.21387059,1321.9,1321.8,45.93047512]
[1673320519397,0.0826805,1321.9,1321.8,47.06297311]
[1673320519837,0.0826805,1321.9,1321.8,45.93047512]
[1673320526292,0.0826805,1321.9,1321.8,46.16047512]
[1673320527935,0.0826805,1321.9,1321.8,47.29297311]
[1673320528306,0.0826805,1321.9,1321.8,52.94877314]
[1673320528658,0.0826805,1321.9,1321.8,51.81627515]
[1673320532096,0.0826805,1321.9,1321.8,52.94877314]
[1673320538447,0.0826805,1321.9,1321.8,54.6482803]
[1673320538856,0.0826805,1321.9,1321.8,52.94877314]
[1673320539023,0.0826805,1321.9,1321.8,54.6482803]
[1673320539668,0.0826805,1321.9,1321.8,52.94877314]
[1673320543241,0.0826805,1321.9,1321.8,46.16047512]
[1673320543564,0.0826805,1321.9,1321.8,47.29297311]
[1673320549275,0.0826805,1321.9,1321.8,38.59503512]
[1673320549470,1.21387059,1321.9,1321.8,22.4792765]
[1673320549677,1.21387059,1321.9,1321.8,34.87178049]
[1673320549899,5.22500901,1321.9,1321.8,14.066]
[1673320550229,6.42250237,1321.9,1321.8,14.066]
[1673320550840,6.42566791,1321.9,1321.8,14.066]
[1673320551017,6.42566791,1321.9,1321.8,14.06519618]
[1673320551018,4.72982088,1321.9,1321.8,14.06519618]
[1673320551230,9.98022589,1321.9,1321.8,14.06519618]
[1673320551453,10.04622589,1321.9,1321.8,14.06519618]
[1673320551661,4.72982088,1321.9,1321.8,14.06519618]
[1673320551875,4.66382088,1321.9,1321.8,14.06519618]
[1673320552806,6.35900444,1321.9,1321.8,14.06519618]
[1673320553122,6.42500444,1321.9,1321.8,14.06519618]
[1673320554329,6.41922964,1321.9,1321.8,14.06519618]
[1673320554716,5.29207175,1321.9,1321.8,14.06519618]
[1673320557689,12.85693175,1321.9,1321.8,14.06519618]
[1673320557881,11.73295579,1321.9,1321.8,14.06519618]
[1673320558096,4.16809579,1321.9,1321.8,14.06519618]
[1673320558312,6.60209579,1321.9,1321.8,14.06519618]
[1673320558591,6.66809579,1321.9,1321.8,14.06519618]
[1673320558803,4.16809579,1321.9,1321.8,14.06519618]
[1673320559029,6.35900444,1321.9,1321.8,14.06519618]
[1673320559326,8.92500444,1321.9,1321.8,14.06519618]
[1673320559949,6.42500444,1321.9,1321.8,14.06519618]
[1673320560164,4.16809579,1321.9,1321.8,14.06519618]
[1673320560374,5.22547835,1321.9,1321.8,21.63063618]
[1673320560619,3.59629479,1321.9,1321.8,21.63063618]
[1673320560825,3.53029479,1321.9,1321.8,29.19607618]
[1673320561043,3.53029479,1321.9,1321.8,21.63063618]
[1673320561230,5.22547835,1321.9,1321.8,21.63063618]
[1673320561532,5.29147835,1321.9,1321.8,21.63063618]
[1673320562325,5.29147835,1321.9,1321.8,14.06519618]
[1673320562535,5.29147835,1321.9,1321.8,21.63063618]
[1673320563357,5.29147835,1321.9,1321.8,14.06519618]
[1673320563571,5.29147835,1321.9,1321.8,21.63063618]
[1673320563899,3.59629479,1321.9,1321.8,21.63063618]
[1673320564109,3.53029479,1321.9,1321.8,21.63063618]
[1673320565222,6.94447835,1321.9,1321.8,0.06519618]
[1673320565432,29.13762608,1321.9,1321.6,14.06519618]
[1673320565679,2.8507138,1321.7,1321.6,14.06519618]
[1673320565896,3.47729225,1321.7,1321.6,14.06519618]
[1673320566638,3.47729225,1321.7,1321.6,0.06519618]
[1673320566639,5.17036295,1321.7,1321.6,0.06519618]
[1673320566793,6.95836295,1321.7,1321.4,21.63254618]
[1673320567004,6.95836295,1321.7,1321.4,32.99777682]
[1673320567005,1.713,1321.5,1321.4,32.99777682]
[1673320569569,1.713,1321.5,1321.4,25.43020682]
[1673320570195,0.0717748,1321.6,1321.4,25.43020682]
[1673320570525,0.0057748,1321.6,1321.4,25.43020682]
[1673320572278,0.0057748,1321.6,1321.4,21.63254618]
[1673320573428,0.0057748,1321.6,1321.4,7.63254618]
[1673320574364,4.5497138,1321.5,1321.4,0.06519618]
[1673320574606,4.5497138,1321.5,1321.1,21.72038816]
[1673320574607,35.36024507,1321.5,1321.1,21.72038816]
[1673320574833,1.722,1321.3,1321.1,25.5180488]
[1673320575057,1.722,1321.4,1321.2,3.79766064]
[1673320575058,9.35581,1321.4,1321.2,3.79766064]
[1673320575370,1.788,1321.4,1321.2,11.36639064]
[1673320575533,1.722,1321.4,1321.2,13.93158682]
[1673320575881,1.722,1321.4,1321.2,11.43158682]
[1673320578258,24.69177187,1321.5,1321.2,11.43158682]
[1673320578529,24.69754667,1321.5,1321.2,11.43158682]
[1673320579564,24.74754667,1321.5,1321.2,11.43158682]
[1673320581301,24.69754667,1321.5,1321.2,11.43158682]
[1673320586116,32.26497667,1321.5,1321.2,3.86285682]
[1673320586314,47.39955667,1321.5,1321.2,3.79766064]
[1673320586929,48.52827047,1321.5,1321.2,3.79766064]
[1673320587711,0.05,1321.4,1321.2,3.79766064]
[1673320589654,48.52827047,1321.5,1321.2,3.79766064]
[1673320589903,48.52856047,1321.5,1321.1,21.72022816]
[1673320590114,4.222,1321.4,1321.1,25.5178888]
[1673320590441,26.11301286,1321.4,1321.1,17.9487388]
[1673320590599,26.17901286,1321.4,1321.1,17.9487388]
[1673320591592,26.17901286,1321.4,1321.1,25.5181388]
[1673320591979,18.61093286,1321.4,1321.1,25.5181388]
[1673320593560,1.722,1321.3,1321.1,25.5181388]
[1673320594094,1.722,1321.3,1321.1,30.3860621]
[1673320594331,9.3615448,1321.4,1321.1,30.3860621]
[1673320596846,9.3615448,1321.4,1321.1,17.9487388]
[1673320597178,9.3615448,1321.4,1321.1,17.94658227]
[1673320597324,10.4902586,1321.4,1321.1,17.94658227]
[1673320598852,10.63112453,1321.4,1321.1,17.94658227]
[1673320599161,10.4902586,1321.4,1321.1,17.94658227]
[1673320599375,15.61268456,1321.4,1321.1,17.94658227]
[1673320599753,15.61268505,1321.4,1321.1,17.94658227]
[1673320599964,15.4718184,1321.4,1321.1,17.94658227]
[1673320600177,15.61268497,1321.4,1321.1,17.94658227]
[1673320600389,15.61268476,1321.4,1321.1,17.94658227]
[1673320600821,15.4718184,1321.4,1321.1,25.51593227]
[1673320601153,10.4902586,1321.4,1321.1,25.51593227]
[1673320601372,0.0717748,1321.4,1321.2,2.0]
[1673320601563,0.0057748,1321.4,1321.2,9.56877]
[1673320601893,0.0057748,1321.4,1321.2,9.63396618]
[1673320603735,0.0057748,1321.4,1321.2,0.06519618]
[1673320603993,0.0057748,1321.4,1321.1,40.65453227]
[1673320604211,0.0057748,1321.4,1321.2,2.5]
[1673320605000,0.0057748,1321.4,1321.2,10.06887]
[1673320605212,0.0057748,1321.4,1321.2,10.13406618]
[1673320606805,1.1344886,1321.4,1321.2,7.63406618]
[1673320607015,4.38951464,1321.4,1321.2,0.06519618]
[1673320607233,11.95727464,1321.4,1321.1,33.08485227]
[1673320607442,12.16413222,1321.4,1321.1,35.82054471]
[1673320607897,4.59637222,1321.4,1321.1,35.82054471]
[1673320608212,4.53037222,1321.4,1321.1,35.82054471]
[1673320608738,6.22344292,1321.4,1321.1,33.08485227]
[1673320608910,6.28944292,1321.4,1321.1,33.08485227]
[1673320609122,6.28944292,1321.4,1321.1,35.82133014]
[1673320610927,6.14858534,1321.4,1321.1,35.82133014]
[1673320611115,6.14858534,1321.4,1321.1,43.39077014]
[1673320611311,2.8935593,1321.4,1321.1,40.65429227]
[1673320611520,2.8275593,1321.4,1321.1,40.65429227]
[1673320613517,2.8275593,1321.4,1321.2,1.8780523]
[1673320613729,2.8275593,1321.4,1321.2,17.0153423]
[1673320613982,1.1287138,1321.4,1321.2,30.93537208]
[1673320614155,1.1287138,1321.4,1321.2,33.67328235]
[1673320614799,1.1287138,1321.4,1321.2,33.67328697]
[1673320615325,1.1307138,1321.4,1321.2,33.67128697]
[1673320615574,1.1287138,1321.4,1321.2,33.67328697]
[1673320616140,2.8217845,1321.4,1321.2,30.93537208]
[1673320616462,1.1287138,1321.4,1321.2,26.56901682]
[1673320616670,2.8217845,1321.4,1321.2,26.56901682]
[1673320618997,1.1287138,1321.3,1321.2,26.56901682]
[1673320619208,1.1287138,1321.3,1321.2,28.4470969]
[1673320620394,1.1287138,1321.3,1321.2,26.56901682]
[1673320623007,1.1287138,1321.3,1321.2,19.00014682]
[1673320627811,1.1287138,1321.3,1321.2,11.43134682]
[1673320629883,2.8217845,1321.3,1321.2,11.43134682]
[1673320633932,1.1287138,1321.3,1321.2,20.87829644]
[1673320634144,1.1287138,1321.3,1321.2,28.25824148]
[1673320634617,2.8217845,1321.4,1321.2,35.82363069]
[1673320634827,2.8217845,1321.4,1321.2,33.94555107]
[1673320635033,1.1287138,1321.3,1321.2,33.94555107]
[1673320635346,1.1287138,1321.3,1321.2,35.82359396]
[1673320635558,2.8217845,1321.4,1321.2,35.82359396]
[1673320635772,2.8217845,1321.4,1321.2,29.30520962]
[1673320637208,1.1287138,1321.3,1321.2,29.30520962]
[1673320637454,2.8217845,1321.4,1321.2,31.18324434]
[1673320637664,2.8217845,1321.4,1321.2,29.30520962]
[1673320641123,2.8217845,1321.4,1321.2,30.43770761]
[1673320641340,2.8217845,1321.4,1321.2,29.30520962]
[1673320641830,1.1287138,1321.3,1321.2,29.30520962]
[1673320642044,1.1287138,1321.3,1321.2,31.18326695]
[1673320646310,1.1287138,1321.3,1321.2,28.44366336]
[1673320646622,1.1287138,1321.3,1321.2,31.18384286]
[1673320646797,1.1287138,1321.3,1321.2,28.44366336]
[1673320648092,1.1287138,1321.3,1321.2,31.18385095]
[1673320657661,1.1287138,1321.4,1321.2,40.8832361]
[1673320657836,1.1287138,1321.4,1321.3,22.41569526]
[1673320657837,1.132778,1321.4,1321.3,22.41569526]
[1673320658032,12.3621487,1321.5,1321.3,46.31828943]
[1673320658246,12.3621487,1321.5,1321.4,3.79766064]
[1673320658602,2.8918487,1321.5,1321.4,18.93312064]
[1673320658817,2.8258487,1321.5,1321.4,26.56604682]
[1673320659202,1.132778,1321.5,1321.4,26.56604682]
[1673320659446,1.132778,1321.5,1321.4,31.4969826]
[1673320661077,1.132778,1321.5,1321.4,33.37474974]
[1673320661335,1.132778,1321.5,1321.4,33.37478607]
[1673320661561,1.132778,1321.5,1321.4,31.4969826]
[1673320662688,2.8258487,1321.6,1321.4,38.63962458]
[1673320663010,2.8258487,1321.6,1321.5,19.67528194]
[1673320663011,1.132778,1321.6,1321.5,19.67528194]
[1673320663364,10.870478,1321.7,1321.5,19.67381921]
[1673320663545,10.870478,1321.7,1321.5,42.37526921]
[1673320666273,9.7377,1321.7,1321.5,42.37526921]
[1673320667385,9.7377,1321.7,1321.5,34.80811921]
[1673320667640,10.870478,1321.7,1321.5,27.24096921]
[1673320667796,10.870478,1321.7,1321.5,34.80811921]
[1673320668323,10.870478,1321.7,1321.5,42.37526921]
[1673320669196,9.7377,1321.7,1321.5,42.37526921]
[1673320670221,0.066,1321.7,1321.6,26.49740064]
[1673320670433,10.228678,1321.8,1321.6,31.4935326]
[1673320674354,10.228678,1321.8,1321.7,29.13202]
[1673320674563,10.228678,1321.8,1321.7,29.19721618]
[1673320675006,1.198778,1321.8,1321.7,29.19721618]
[1673320675223,1.132778,1321.8,1321.7,29.19721618]
[1673320676904,14.1540292,1321.9,1321.7,29.19721618]
[1673320677626,2.9745292,1321.9,1321.7,29.19721618]
[1673320677822,2.9085292,1321.9,1321.7,15.19721618]
[1673320678028,4.69924901,1321.9,1321.7,15.19721618]
[1673320679668,4.69924901,1321.9,1321.7,29.19721618]
[1673320682608,4.69924901,1321.9,1321.7,36.76322618]
[1673320683448,4.69924901,1321.9,1321.7,29.19721618]
[1673320683841,4.69924901,1321.9,1321.7,36.76322618]
[1673320687248,1.132778,1321.8,1321.7,36.76322618]
[1673320692008,2.9085292,1321.9,1321.7,36.76322618]
[1673320692218,1.2154585,1321.9,1321.7,36.76322618]
[1673320694679,2.9085292,1321.9,1321.7,36.76322618]
[1673320697202,2.9085292,1321.9,1321.7,40.56088682]
[1673320697203,1.132778,1321.8,1321.7,40.56088682]
[1673320697440,1.132778,1321.8,1321.7,44.6169755]
[1673320700874,2.9085292,1321.9,1321.7,46.49430082]
[1673320701092,1.2154585,1321.9,1321.8,6.29766064]
[1673320701284,0.0826805,1321.9,1321.8,33.62214902]
[1673320701625,1.2154585,1321.9,1321.8,10.92583369]
[1673320702226,1.2154585,1321.9,1321.8,33.62215369]
[1673320702442,1.2154585,1321.9,1321.8,31.12215369]
[1673320702872,1.2154585,1321.9,1321.8,29.24498631]